[Event "GER-ch Youth-U12 2024"]
[Site "Willingen"]
[Date "2024.05.19"]
[Round "1"]
[White "Hagn, Tobias"]
[Black "Junge, Mattheo Gabriel"]
[Result "1-0"]
[ECO "B13"]
[WhiteElo "1631"]
[BlackElo "1817"]
[Annotator "NA RC"]
[PlyCount "151"]
[EventDate "2022.06.05"]
[EventType "swiss"]
[EventRounds "9"]
[EventCountry "GER"]
[SourceTitle "playchess.com"]
[Source "ChessBase"]
[SourceQuality "1"]
[TimeControl "40/4500+30:900+30"]

1. e4 {[%emt 0:00:00]} c6 {[%emt 0:00:00]} 2. d4 {[%emt 0:00:00]} d5 {[%emt 0:00:00]} 3. exd5 {[%emt 0:00:00]} cxd5 {[%emt 0:00:00]} 4. Bd3 {[%emt 0:00:00]} Nc6 {[%emt 0:00:00]} 5. c3 {[%emt 0:00:00]} Nf6 {[%emt 0:00:00]} 6. Bf4 {[%emt 0:00:00]} Bg4 {[%emt 0:00:00]} 7. Qc2 {[%emt 0:00:00]} Rc8 {[%emt 0:00:00]} 8. f3 {[%emt 0:00:00]} Bh5 {[%emt 0:00:00]} 9. Ne2 {[%emt 0:00:00]} e6 {[%emt 0:00:00]} 10. Nd2 {[%emt 0:02:39]} Be7 {[%emt 0:00:00]} 11. Nb3 {[%emt 0:03:07]} O-O {[%emt 0:00:00]} 12. Bg5 {[%emt 0:03:33]} Nb4 {[%emt 0:00:00]} 13. Qd2 {[%emt 0:02:38]} Nxd3+ {[%emt 0:00:00]} 14. Qxd3 {[%emt 0:00:08]} Bg6 {[%emt 0:00:00]} 15. Qd2 {[%emt 0:01:26]} h6 {[%emt 0:00:00]} 16. Bh4 {[%emt 0:03:51]} b6 {[%emt 0:00:00]} 17. h3 {[%emt 0:04:05]} Qd7 {[%emt 0:00:00]} 18. Bg3 {[%emt 0:04:31]} Nh5 {[%emt 0:00:00]} 19. Bh2 {[%emt 0:00:28]} Bg5 {[%emt 0:00:00]} 20. f4 {[%emt 0:00:34]} Be7 {[%emt 0:00:00]} 21. O-O {[%emt 0:08:51]} Nf6 {[%emt 0:00:38]} 22. g4 {[%emt 0:04:53]} h5 {[%emt 0:02:06]} 23. gxh5 {[%emt 0:10:04]} Nxh5 {[%emt 0:03:28]} 24. Ng3 {[%emt 0:03:06]} Nxg3 {[%emt 0:00:16]} 25. Bxg3 {[%emt 0:00:08]} Bf5 {[%emt 0:00:52]} 26. Kf2 {[%emt 0:07:48]} Bxh3 {[%emt 0:06:59]} 27. Rh1 {[%emt 0:00:24]} Bf5 {[%emt 0:00:24]} 28. Qe2 {[%emt 0:00:54]} Bg6 {[%emt 0:01:14]} 29. Bh4 {[%emt 0:05:14]} Bd6 {[%emt 0:02:19]} 30. Qg4 {[%emt 0:03:38]} Be7 {[%emt 0:16:15]} 31. Bf6 {[%emt 0:00:56]} Bxf6 {[%emt 0:05:55]} 32. Qh3 {[%emt 0:00:21]} Bh4+ {[%emt 0:00:04]} 33. Qxh4 {[%emt 0:00:08]} f6 {[%emt 0:00:10]} 34. Rag1 {[%emt 0:00:18]} Be4 {[%emt 0:08:32]} 35. Qh8+ {[%emt 0:00:08]} Kf7 {[%emt 0:00:03]} 36. Rxg7+ {[%emt 0:00:10]} Ke8 {[%emt 0:00:11]} 37. Qxf8+ {[%emt 0:00:08]} Kxf8 {[%emt 0:00:04]} 38. Rxd7 {[%emt 0:00:09]} Bxh1 {[%emt 0:00:03]} 39. Rh7 {[%emt 0:00:12]} Kg8 {[%emt 0:01:34]} 40. Rxh1 {[%emt 0:00:09]} Rc6 {[%emt 0:00:21]} 41. Kf3 {[%emt 0:16:15]} a5 {[%emt 0:15:41]} 42. Nd2 {[%emt 0:00:46]} b5 {[%emt 0:01:02]} 43. Rc1 {[%emt 0:00:45]} Kf7 {[%emt 0:00:48]} 44. b3 {[%emt 0:00:46]} Ke7 {[%emt 0:01:03]} 45. c4 {[%emt 0:00:37]} bxc4 {[%emt 0:00:42]} 46. bxc4 {[%emt 0:00:10]} dxc4 {[%emt 0:01:35]} 47. Rxc4 {[%emt 0:01:06]} Rd6 {[%emt 0:01:22]} 48. Ke4 {[%emt 0:02:59]} Rd8 {[%emt 0:00:54]} 49. Rc7+ {[%emt 0:00:24]} Kd6 {[%emt 0:00:48]} 50. Ra7 {[%emt 0:00:18]} Rc8 {[%emt 0:05:13]} 51. Ra6+ {[%emt 0:01:47]} Ke7 {[%emt 0:00:06]} 52. Rxa5 {[%emt 0:00:49]} Rc3 {[%emt 0:00:08]} 53. f5 {[%emt 0:01:21]} exf5+ {[%emt 0:00:15]} 54. Kxf5 {[%emt 0:00:21]} Rd3 {[%emt 0:00:09]} 55. Ra7+ {[%emt 0:00:32]} Kd6 {[%emt 0:00:16]} 56. Nb3 {[%emt 0:00:55]} Rf3+ {[%emt 0:00:09]} 57. Ke4 {[%emt 0:00:23]} Rf1 {[%emt 0:00:06]} 58. Ra6+ {[%emt 0:00:22]} Ke7 {[%emt 0:00:06]} 59. d5 {[%emt 0:00:33]} Re1+ {[%emt 0:00:18]} 60. Kf3 {[%emt 0:00:08]} Rd1 {[%emt 0:00:13]} 61. d6+ {[%emt 0:00:25]} Rxd6 {[%emt 0:00:18]} 62. Rxd6 {[%emt 0:00:13]} Kxd6 {[%emt 0:00:03]} 63. a4 {[%emt 0:00:36]} Kc6 {[%emt 0:00:06]} 64. a5 {[%emt 0:00:05]} Kb5 {[%emt 0:00:04]} 65. Kf4 {[%emt 0:00:10]} Ka6 {[%emt 0:00:04]} 66. Kf5 {[%emt 0:00:11]} Kb5 {[%emt 0:00:04]} 67. Kxf6 {[%emt 0:00:07]} Ka6 {[%emt 0:00:03]} 68. Ke5 {[%emt 0:00:10]} Kb5 {[%emt 0:00:07]} 69. Kd5 {[%emt 0:00:07]} Ka6 {[%emt 0:00:03]} 70. Kc6 {[%emt 0:00:07]} Ka7 {[%emt 0:00:02]} 71. Kb5 {[%emt 0:00:06]} Kb7 {[%emt 0:00:05]} 72. Nc5+ {[%emt 0:00:07]} Ka7 {[%emt 0:00:03]} 73. a6 {[%emt 0:00:07]} Kb8 {[%emt 0:00:05]} 74. Kb6 {[%emt 0:00:10]} Ka8 {[%emt 0:00:04]} 75. Ne6 {[%emt 0:00:08]} Kb8 {[%emt 0:00:06]} 76. Nc7 {[%emt 0:00:08]} 1-0

[Event "GER-ch Youth-U12 2024"]
[Site "Willingen"]
[Date "2024.05.19"]
[Round "1"]
[White "Franke, Moritz"]
[Black "Chua, Daniel James"]
[Result "1/2-1/2"]
[ECO "B50"]
[WhiteElo "1597"]
[BlackElo "1751"]
[Annotator "NA RC"]
[PlyCount "86"]
[EventDate "2022.06.05"]
[EventType "swiss"]
[EventRounds "9"]
[EventCountry "GER"]
[SourceTitle "playchess.com"]
[Source "ChessBase"]
[SourceQuality "1"]
[TimeControl "40/4500+30:900+30"]

1. e4 {[%emt 0:00:00]} c5 {[%emt 0:00:00]} 2. Be2 {[%emt 0:00:00]} d6 {[%emt 0:00:00]} 3. d3 {[%emt 0:00:00]} Nc6 {[%emt 0:00:00]} 4. c3 {[%emt 0:00:00]} Nf6 {[%emt 0:00:00]} 5. Be3 {[%emt 0:00:00]} g6 {[%emt 0:00:00]} 6. h3 {[%emt 0:00:00]} Bg7 {[%emt 0:00:00]} 7. Nf3 {[%emt 0:00:00]} O-O {[%emt 0:00:00]} 8. O-O {[%emt 0:00:00]} Be6 {[%emt 0:00:00]} 9. Nbd2 {[%emt 0:00:00]} Rc8 {[%emt 0:00:00]} 10. d4 {[%emt 0:00:00]} cxd4 {[%emt 0:00:00]} 11. cxd4 {[%emt 0:00:00]} d5 {[%emt 0:00:00]} 12. e5 {[%emt 0:00:00]} Nd7 {[%emt 0:00:00]} 13. Ng5 {[%emt 0:00:00]} Qb6 {[%emt 0:02:20]} 14. Nxe6 {[%emt 0:00:00]} fxe6 {[%emt 0:00:01]} 15. Nb3 {[%emt 0:00:00]} Na5 {[%emt 0:05:04]} 16. Bd2 {[%emt 0:00:00]} Nc4 {[%emt 0:01:37]} 17. Bc3 {[%emt 0:00:00]} Rf7 {[%emt 0:02:45]} 18. Rc1 {[%emt 0:00:00]} Rcf8 {[%emt 0:01:36]} 19. Bxc4 {[%emt 0:00:00]} dxc4 {[%emt 0:00:10]} 20. Na5 {[%emt 0:00:00]} Bh6 {[%emt 0:03:06]} 21. Nxc4 {[%emt 0:02:24]} Qa6 {[%emt 0:00:42]} 22. Bd2 {[%emt 0:00:22]} Bxd2 {[%emt 0:01:49]} 23. Nxd2 {[%emt 0:00:40]} Qxa2 {[%emt 0:00:33]} 24. Qb3 {[%emt 0:00:04]} Qa5 {[%emt 0:01:49]} 25. Nf3 {[%emt 0:02:02]} Rd8 {[%emt 0:18:34]} 26. Ng5 {[%emt 0:01:01]} Nf8 {[%emt 0:04:55]} 27. Nxf7 {[%emt 0:00:09]} Kxf7 {[%emt 0:00:01]} 28. Qc3 {[%emt 0:01:57]} Qxc3 {[%emt 0:01:27]} 29. bxc3 {[%emt 0:00:03]} a5 {[%emt 0:00:19]} 30. Ra1 {[%emt 0:00:10]} b6 {[%emt 0:00:10]} 31. Rab1 {[%emt 0:00:14]} Nd7 {[%emt 0:00:05]} 32. g4 {[%emt 0:00:26]} Rc8 {[%emt 0:00:10]} 33. Rfc1 {[%emt 0:00:15]} Rc4 {[%emt 0:00:07]} 34. Kf1 {[%emt 0:00:10]} a4 {[%emt 0:01:07]} 35. Rb4 {[%emt 0:00:11]} Rxb4 {[%emt 0:00:08]} 36. cxb4 {[%emt 0:00:02]} b5 {[%emt 0:00:08]} 37. Ke2 {[%emt 0:00:20]} Nb6 {[%emt 0:00:05]} 38. Rc5 {[%emt 0:01:34]} Nd5 {[%emt 0:00:09]} 39. Kd2 {[%emt 0:00:26]} Nxb4 {[%emt 0:03:00]} 40. Rxb5 {[%emt 0:00:45]} Nd5 {[%emt 0:00:34]} 41. Ra5 {[%emt 0:15:27]} Nf4 {[%emt 0:00:36]} 42. Rxa4 {[%emt 0:00:01]} Nxh3 {[%emt 0:14:45]} 43. Ke3 {[%emt 0:00:29]} g5 {[%emt 0:01:11]} 1/2-1/2

[Event "GER-ch Youth-U12 2024"]
[Site "Willingen"]
[Date "2024.05.19"]
[Round "1"]
[White "Rinke, Alexander"]
[Black "Meijers, Janis"]
[Result "0-1"]
[ECO "B15"]
[WhiteElo "1596"]
[BlackElo "1787"]
[Annotator "NA RC"]
[PlyCount "58"]
[EventDate "2022.06.05"]
[EventType "swiss"]
[EventRounds "9"]
[EventCountry "GER"]
[SourceTitle "playchess.com"]
[Source "ChessBase"]
[SourceQuality "1"]
[TimeControl "40/4500+30:900+30"]

1. e4 {[%emt 0:00:00]} c6 {[%emt 0:00:00]} 2. Nf3 {[%emt 0:00:00]} d5 {[%emt 0:00:00]} 3. Nc3 {[%emt 0:00:00]} dxe4 {[%emt 0:00:00]} 4. Nxe4 {[%emt 0:00:00]} Nf6 {[%emt 0:00:00]} 5. Nxf6+ {[%emt 0:00:00]} exf6 {[%emt 0:00:00]} 6. d4 {[%emt 0:00:00]} Bd6 {[%emt 0:00:00]} 7. Bd3 {[%emt 0:00:00]} O-O {[%emt 0:00:00]} 8. O-O {[%emt 0:00:00]} Bg4 {[%emt 0:00:00]} 9. h3 {[%emt 0:00:00]} Bh5 {[%emt 0:00:00]} 10. c3 {[%emt 0:04:30]} Qc7 {[%emt 0:00:00]} 11. Re1 {[%emt 0:05:16]} Nd7 {[%emt 0:00:00]} 12. Be2 {[%emt 0:10:30]} Rfe8 {[%emt 0:00:00]} 13. Be3 {[%emt 0:02:26]} Nb6 {[%emt 0:01:41]} 14. Nh4 {[%emt 0:04:59]} Bxe2 {[%emt 0:01:53]} 15. Qxe2 {[%emt 0:01:21]} Nd5 {[%emt 0:01:05]} 16. Qd2 {[%emt 0:10:27]} Re4 {[%emt 0:02:09]} 17. Nf5 {[%emt 0:04:36]} Bh2+ {[%emt 0:06:51]} 18. Kh1 {[%emt 0:01:17]} Bf4 {[%emt 0:05:09]} 19. f3 {[%emt 0:04:11]} Nxe3 {[%emt 0:05:02]} 20. Nxe3 {[%emt 0:01:36]} Re6 {[%emt 0:00:31]} 21. Qd3 {[%emt 0:01:29]} Bg3 {[%emt 0:04:17]} 22. Rf1 {[%emt 0:03:36]} Rae8 {[%emt 0:00:38]} 23. Nc4 {[%emt 0:12:52]} Re2 {[%emt 0:01:47]} 24. Rab1 {[%emt 0:01:31]} b5 {[%emt 0:01:06]} 25. Na3 {[%emt 0:04:20]} Qf4 {[%emt 0:01:27]} 26. c4 {[%emt 0:04:24]} Rd2 {[%emt 0:01:00]} 27. Qc3 {[%emt 0:01:02]} Ree2 {[%emt 0:00:26]} 28. Qa5 {[%emt 0:01:26]} h6 {[%emt 0:00:15]} 29. Rg1 {[%emt 0:01:56]} Qf5 {[%emt 0:00:08]} 0-1

[Event "GER-ch Youth-U12 2024"]
[Site "Willingen"]
[Date "2024.05.19"]
[Round "1"]
[White "Gao, Chenzhuo"]
[Black "Fels, Mattis"]
[Result "1-0"]
[ECO "D05"]
[WhiteElo "1580"]
[BlackElo "1759"]
[Annotator "NA RC"]
[PlyCount "87"]
[EventDate "2022.06.05"]
[EventType "swiss"]
[EventRounds "9"]
[EventCountry "GER"]
[SourceTitle "playchess.com"]
[Source "ChessBase"]
[SourceQuality "1"]
[TimeControl "40/4500+30:900+30"]

1. d4 {[%emt 0:00:00]} d5 {[%emt 0:00:00]} 2. Nf3 {[%emt 0:00:00]} e6 {[%emt 0:00:00]} 3. e3 {[%emt 0:00:00]} f5 {[%emt 0:00:00]} 4. Nbd2 {[%emt 0:00:00]} Nf6 {[%emt 0:00:00]} 5. Bd3 {[%emt 0:00:00]} Be7 {[%emt 0:00:00]} 6. b3 {[%emt 0:00:00]} O-O {[%emt 0:00:00]} 7. Bb2 {[%emt 0:00:00]} Ne4 {[%emt 0:00:00]} 8. O-O {[%emt 0:00:00]} Nd7 {[%emt 0:00:00]} 9. c4 {[%emt 0:00:00]} c6 {[%emt 0:00:00]} 10. Qc2 {[%emt 0:00:00]} g5 {[%emt 0:01:30]} 11. Rad1 {[%emt 0:00:57]} h5 {[%emt 0:06:05]} 12. Ne5 {[%emt 0:01:33]} Nxe5 {[%emt 0:02:34]} 13. dxe5 {[%emt 0:00:14]} Qe8 {[%emt 0:03:25]} 14. cxd5 {[%emt 0:15:56]} exd5 {[%emt 0:00:48]} 15. f3 {[%emt 0:05:09]} Nxd2 {[%emt 0:04:54]} 16. Rxd2 {[%emt 0:02:06]} Bb4 {[%emt 0:11:17]} 17. Re2 {[%emt 0:02:29]} Qe7 {[%emt 0:00:19]} 18. Qc1 {[%emt 0:07:37]} Be6 {[%emt 0:05:57]} 19. Kh1 {[%emt 0:01:51]} Rf7 {[%emt 0:04:02]} 20. a3 {[%emt 0:06:25]} Bc5 {[%emt 0:01:15]} 21. b4 {[%emt 0:01:16]} Bb6 {[%emt 0:00:42]} 22. Bd4 {[%emt 0:01:17]} Qc7 {[%emt 0:07:41]} 23. Rc2 {[%emt 0:03:15]} f4 {[%emt 0:02:41]} 24. b5 {[%emt 0:01:28]} fxe3 {[%emt 0:03:12]} 25. Bxb6 {[%emt 0:01:09]} axb6 {[%emt 0:03:20]} 26. Qxe3 {[%emt 0:12:01]} Rg7 {[%emt 0:07:00]} 27. bxc6 {[%emt 0:06:28]} bxc6 {[%emt 0:01:00]} 28. Rb1 {[%emt 0:01:03]} Rxa3 {[%emt 0:00:50]} 29. Bh7+ {[%emt 0:02:41]} Kxh7 {[%emt 0:00:45]} 30. Qxa3 {[%emt 0:00:12]} Bf5 {[%emt 0:00:15]} 31. Qb2 {[%emt 0:01:32]} Bxc2 {[%emt 0:02:07]} 32. Qxc2+ {[%emt 0:00:07]} Kh6 {[%emt 0:00:39]} 33. g3 {[%emt 0:02:48]} c5 {[%emt 0:04:16]} 34. Qf5 {[%emt 0:01:51]} Rg6 {[%emt 0:06:28]} 35. e6 {[%emt 0:01:42]} d4 {[%emt 0:02:11]} 36. Qf8+ {[%emt 0:02:46]} Qg7 {[%emt 0:01:42]} 37. e7 {[%emt 0:00:41]} Re6 {[%emt 0:02:04]} 38. e8=Q {[%emt 0:01:06]} Rxe8 {[%emt 0:00:18]} 39. Rxb6+ {[%emt 0:00:29]} Kh7 {[%emt 0:00:37]} 40. Qxe8 {[%emt 0:00:23]} d3 {[%emt 0:01:37]} 41. Qxh5+ {[%emt 0:16:29]} Kg8 {[%emt 0:15:09]} 42. Rb8+ {[%emt 0:00:12]} Qf8 {[%emt 0:00:06]} 43. Qg6+ {[%emt 0:00:06]} Kh8 {[%emt 0:00:09]} 44. Rxf8# {[%emt 0:00:35]} 1-0

[Event "GER-ch Youth-U12 2024"]
[Site "Willingen"]
[Date "2024.05.19"]
[Round "1"]
[White "Levytskyi, Oleksandr"]
[Black "Hepp, Daniel"]
[Result "1/2-1/2"]
[ECO "B39"]
[WhiteElo "1467"]
[BlackElo "1721"]
[Annotator "NA RC"]
[PlyCount "56"]
[EventDate "2022.06.05"]
[EventType "swiss"]
[EventRounds "9"]
[EventCountry "GER"]
[SourceTitle "playchess.com"]
[Source "ChessBase"]
[SourceQuality "1"]
[TimeControl "40/4500+30:900+30"]

1. e4 {[%emt 0:00:00]} c5 {[%emt 0:00:00]} 2. Nf3 {[%emt 0:00:00]} Nc6 {[%emt 0:00:00]} 3. d4 {[%emt 0:00:00]} cxd4 {[%emt 0:00:00]} 4. Nxd4 {[%emt 0:00:00]} g6 {[%emt 0:00:00]} 5. c4 {[%emt 0:00:00]} Bg7 {[%emt 0:00:00]} 6. Be3 {[%emt 0:00:00]} Nf6 {[%emt 0:00:00]} 7. Nc3 {[%emt 0:00:00]} Ng4 {[%emt 0:00:00]} 8. Qxg4 {[%emt 0:04:21]} Nxd4 {[%emt 0:00:00]} 9. Qd1 {[%emt 0:01:18]} Nc6 {[%emt 0:00:00]} 10. Be2 {[%emt 0:02:53]} O-O {[%emt 0:00:00]} 11. O-O {[%emt 0:06:27]} d6 {[%emt 0:00:00]} 12. Qd2 {[%emt 0:08:45]} Be6 {[%emt 0:02:05]} 13. Bh6 {[%emt 0:03:13]} Rc8 {[%emt 0:07:13]} 14. Bxg7 {[%emt 0:00:12]} Kxg7 {[%emt 0:00:01]} 15. b3 {[%emt 0:02:31]} Qb6 {[%emt 0:09:21]} 16. Rad1 {[%emt 0:04:04]} h6 {[%emt 0:09:28]} 17. Kh1 {[%emt 0:07:40]} Rce8 {[%emt 0:16:15]} 18. f4 {[%emt 0:19:27]} f5 {[%emt 0:12:41]} 19. exf5 {[%emt 0:00:36]} Bxf5 {[%emt 0:00:33]} 20. Nd5 {[%emt 0:00:09]} Qd8 {[%emt 0:01:35]} 21. Qc3+ {[%emt 0:02:17]} Kh7 {[%emt 0:04:14]} 22. Qg3 {[%emt 0:02:22]} e6 {[%emt 0:04:21]} 23. Ne3 {[%emt 0:01:26]} Qe7 {[%emt 0:03:05]} 24. Bd3 {[%emt 0:02:36]} Rg8 {[%emt 0:03:36]} 25. Rfe1 {[%emt 0:01:58]} Qf7 {[%emt 0:02:07]} 26. Qf2 {[%emt 0:00:33]} Rd8 {[%emt 0:00:48]} 27. Nc2 {[%emt 0:02:08]} Rge8 {[%emt 0:02:35]} 28. Nd4 {[%emt 0:00:21]} Nxd4 {[%emt 0:00:17]} 1/2-1/2

[Event "GER-ch Youth-U12 2024"]
[Site "Willingen"]
[Date "2024.05.19"]
[Round "1"]
[White "König, Lian"]
[Black "Andersen, Jonathan"]
[Result "0-1"]
[ECO "C55"]
[WhiteElo "1180"]
[BlackElo "1693"]
[Annotator "NA"]
[PlyCount "68"]
[EventDate "2022.06.05"]
[EventType "swiss"]
[EventRounds "9"]
[EventCountry "GER"]
[SourceTitle "playchess.com"]
[Source "ChessBase"]
[SourceQuality "1"]
[TimeControl "40/4500+30:900+30"]

1. e4 {[%emt 0:00:00]} e5 {[%emt 0:00:00]} 2. Nf3 {[%emt 0:00:00]} Nc6 {[%emt 0:00:00]} 3. Bc4 {[%emt 0:00:00]} Be7 {[%emt 0:00:00]} 4. c3 {[%emt 0:00:00]} Nf6 {[%emt 0:00:00]} 5. d3 {[%emt 0:00:00]} O-O {[%emt 0:00:00]} 6. Nbd2 {[%emt 0:00:00]} d6 {[%emt 0:00:00]} 7. Bb3 {[%emt 0:00:00]} Nd7 {[%emt 0:00:00]} 8. d4 {[%emt 0:00:00]} exd4 {[%emt 0:00:00]} 9. Nxd4 {[%emt 0:00:00]} Nc5 {[%emt 0:00:00]} 10. Bc2 {[%emt 0:03:04]} a5 {[%emt 0:00:00]} 11. h3 {[%emt 0:06:12]} Bf6 {[%emt 0:00:00]} 12. Nxc6 {[%emt 0:02:47]} bxc6 {[%emt 0:00:00]} 13. O-O {[%emt 0:01:17]} Ba6 {[%emt 0:00:00]} 14. Re1 {[%emt 0:01:36]} Re8 {[%emt 0:00:00]} 15. Nb3 {[%emt 0:07:36]} Nxb3 {[%emt 0:00:00]} 16. Bxb3 {[%emt 0:02:42]} d5 {[%emt 0:04:10]} 17. exd5 {[%emt 0:03:19]} Rxe1+ {[%emt 0:01:18]} 18. Qxe1 {[%emt 0:00:10]} cxd5 {[%emt 0:00:13]} 19. Be3 {[%emt 0:10:06]} Qd7 {[%emt 0:05:40]} 20. Qd2 {[%emt 0:02:35]} c6 {[%emt 0:03:38]} 21. Bc5 {[%emt 0:02:09]} Re8 {[%emt 0:04:27]} 22. Re1 {[%emt 0:08:44]} h6 {[%emt 0:02:17]} 23. Rxe8+ {[%emt 0:01:58]} Qxe8 {[%emt 0:00:06]} 24. Bb6 {[%emt 0:04:27]} Bd8 {[%emt 0:28:00]} 25. Bd4 {[%emt 0:03:11]} Bg5 {[%emt 0:01:15]} 26. Qd1 {[%emt 0:02:04]} Be2 {[%emt 0:08:30]} 27. Qc2 {[%emt 0:10:13]} Bb5 {[%emt 0:01:39]} 28. Qd1 {[%emt 0:02:19]} Bf4 {[%emt 0:02:01]} 29. g3 {[%emt 0:01:49]} Bd6 {[%emt 0:02:47]} 30. Be3 {[%emt 0:01:29]} Bxg3 {[%emt 0:02:58]} 31. fxg3 {[%emt 0:01:16]} Qxe3+ {[%emt 0:00:34]} 32. Kg2 {[%emt 0:00:47]} Be2 {[%emt 0:00:31]} 33. Qg1 {[%emt 0:00:53]} Bf3+ {[%emt 0:00:19]} 34. Kh2 {[%emt 0:00:19]} Qe2+ {[%emt 0:00:15]} 0-1

[Event "GER-ch Youth-U12 2024"]
[Site "Willingen"]
[Date "2024.05.19"]
[Round "1"]
[White "Schellinger, Florian"]
[Black "Vu Hoang Bach"]
[Result "0-1"]
[ECO "C00"]
[WhiteElo "863"]
[BlackElo "1677"]
[Annotator "NA"]
[PlyCount "84"]
[EventDate "2022.06.05"]
[EventType "swiss"]
[EventRounds "9"]
[EventCountry "GER"]
[SourceTitle "playchess.com"]
[Source "ChessBase"]
[SourceQuality "1"]
[TimeControl "40/4500+30:900+30"]

1. e4 {[%emt 0:00:00]} e6 {[%emt 0:00:00]} 2. Nf3 {[%emt 0:00:00]} d5 {[%emt 0:00:00]} 3. exd5 {[%emt 0:00:00]} exd5 {[%emt 0:00:00]} 4. Nc3 {[%emt 0:00:00]} Bf5 {[%emt 0:00:00]} 5. Be2 {[%emt 0:00:00]} Nf6 {[%emt 0:00:00]} 6. d3 {[%emt 0:00:00]} Bd6 {[%emt 0:00:00]} 7. Bg5 {[%emt 0:00:00]} c6 {[%emt 0:00:00]} 8. O-O {[%emt 0:00:00]} O-O {[%emt 0:00:00]} 9. h3 {[%emt 0:00:00]} h6 {[%emt 0:00:00]} 10. Bh4 {[%emt 0:00:00]} Nbd7 {[%emt 0:00:00]} 11. Nd4 {[%emt 0:00:00]} Bh7 {[%emt 0:08:00]} 12. Bg4 {[%emt 0:00:00]} Qb6 {[%emt 0:02:05]} 13. Bxf6 {[%emt 0:00:00]} Nxf6 {[%emt 0:00:10]} 14. Nf5 {[%emt 0:00:00]} Bxf5 {[%emt 0:00:09]} 15. Bxf5 {[%emt 0:00:00]} Qxb2 {[%emt 0:00:02]} 16. Qd2 {[%emt 0:01:34]} Bb4 {[%emt 0:00:28]} 17. Rfb1 {[%emt 0:00:00]} Qxc3 {[%emt 0:00:19]} 18. Qe2 {[%emt 0:00:00]} b6 {[%emt 0:00:59]} 19. Qd1 {[%emt 0:00:00]} Rfe8 {[%emt 0:00:17]} 20. Rb3 {[%emt 0:00:00]} Qxa1 {[%emt 0:00:35]} 21. Qxa1 {[%emt 0:00:00]} Re1+ {[%emt 0:00:04]} 22. Qxe1 {[%emt 0:00:00]} Bxe1 {[%emt 0:00:04]} 23. Rb1 {[%emt 0:00:25]} Bc3 {[%emt 0:00:13]} 24. Rb3 {[%emt 0:02:45]} Be5 {[%emt 0:01:18]} 25. Rb1 {[%emt 0:00:22]} g6 {[%emt 0:00:12]} 26. Bg4 {[%emt 0:00:20]} Nxg4 {[%emt 0:00:03]} 27. hxg4 {[%emt 0:00:15]} Re8 {[%emt 0:00:10]} 28. g3 {[%emt 0:00:21]} Bd4 {[%emt 0:00:17]} 29. Kg2 {[%emt 0:00:16]} Re2 {[%emt 0:00:09]} 30. Rf1 {[%emt 0:00:20]} Rxc2 {[%emt 0:00:08]} 31. a3 {[%emt 0:00:34]} Rd2 {[%emt 0:00:10]} 32. a4 {[%emt 0:00:43]} Rxd3 {[%emt 0:00:25]} 33. Kh3 {[%emt 0:00:40]} c5 {[%emt 0:00:00]} 34. g5 {[%emt 0:00:35]} h5 {[%emt 0:00:00]} 35. Kh4 {[%emt 0:00:14]} c4 {[%emt 0:00:04]} 36. g4 {[%emt 0:00:08]} c3 {[%emt 0:00:32]} 37. gxh5 {[%emt 0:00:06]} c2 {[%emt 0:00:11]} 38. hxg6 {[%emt 0:00:16]} fxg6 {[%emt 0:00:10]} 39. f4 {[%emt 0:00:16]} Bf2+ {[%emt 0:00:06]} 40. Kg4 {[%emt 0:00:48]} Rg3+ {[%emt 0:00:07]} 41. Kh4 {[%emt 0:15:14]} Rg1+ {[%emt 0:15:04]} 42. Kh3 {[%emt 0:00:10]} Rxf1 {[%emt 0:00:09]} 0-1

[Event "GER-ch Youth-U12 2024"]
[Site "Willingen"]
[Date "2024.05.19"]
[Round "2"]
[White "Tarasenko, Nazar"]
[Black "Lanert, Theodor"]
[Result "1/2-1/2"]
[ECO "E71"]
[WhiteElo "2061"]
[BlackElo "1742"]
[Annotator "NA RC"]
[PlyCount "52"]
[EventDate "2022.06.05"]
[EventType "swiss"]
[EventRounds "9"]
[EventCountry "GER"]
[SourceTitle "playchess.com"]
[Source "ChessBase"]
[SourceQuality "1"]
[TimeControl "40/4500+30:900+30"]

1. d4 {[%emt 0:00:00]} Nf6 {[%emt 0:00:00]} 2. c4 {[%emt 0:00:00]} g6 {[%emt 0:00:00]} 3. Nc3 {[%emt 0:00:00]} Bg7 {[%emt 0:00:00]} 4. e4 {[%emt 0:00:00]} d6 {[%emt 0:00:00]} 5. h3 {[%emt 0:00:00]} O-O {[%emt 0:00:00]} 6. Be3 {[%emt 0:00:00]} c5 {[%emt 0:00:00]} 7. Nge2 {[%emt 0:00:00]} Qa5 {[%emt 0:05:00]} 8. Qd2 {[%emt 0:00:00]} Nc6 {[%emt 0:00:15]} 9. d5 {[%emt 0:00:00]} Nd4 {[%emt 0:00:16]} 10. f3 {[%emt 0:00:00]} Nb3 {[%emt 0:01:24]} 11. axb3 {[%emt 0:00:00]} Qxa1+ {[%emt 0:00:30]} 12. Kf2 {[%emt 0:00:00]} Qa5 {[%emt 0:03:42]} 13. g4 {[%emt 0:02:26]} e5 {[%emt 0:20:50]} 14. Ng3 {[%emt 0:05:05]} Ne8 {[%emt 0:07:11]} 15. Bd3 {[%emt 0:01:35]} Qd8 {[%emt 0:02:22]} 16. h4 {[%emt 0:02:02]} f6 {[%emt 0:00:34]} 17. Kg2 {[%emt 0:01:11]} Bd7 {[%emt 0:01:53]} 18. Qe2 {[%emt 0:02:17]} h6 {[%emt 0:06:23]} 19. Qd2 {[%emt 0:05:23]} g5 {[%emt 0:02:06]} 20. Nf5 {[%emt 0:01:31]} Bxf5 {[%emt 0:01:37]} 21. exf5 {[%emt 0:00:07]} Qa5 {[%emt 0:02:57]} 22. Qc1 {[%emt 0:00:59]} Qb6 {[%emt 0:00:49]} 23. Bc2 {[%emt 0:00:09]} Qd8 {[%emt 0:04:41]} 24. Qg1 {[%emt 0:01:49]} a5 {[%emt 0:03:43]} 25. Qh2 {[%emt 0:01:14]} Kf7 {[%emt 0:03:45]} 26. Ne4 {[%emt 0:00:42]} Rh8 {[%emt 0:02:17]} 1/2-1/2